Workbook

Sheet Main Lab
A1: CE EN 114 Lab 5 Grader
A3: Side | B3: Azimuth Angles | C3: Bearing Angles
A4: 1 | B4: 25* 25' 25 '' | C4: N 25* 25' 25 '' E | F4: Interior Angles Balanced? | H4: No
A5: 2 | B5: 230* 50' 50 '' | C5: S 50* 50' 50 '' W | F5: Perimeter: | H5: 48
A6: 3 | B6: 76* 16' 15 '' | C6: N 76* 16' 15 '' E
A7: 4 | B7: 281* 41' 40 '' | C7: N 78* 18' 20 '' W
A9: Side | B9: Latitude (Y) | C9: Departure(X)
A10: 1 | B10: 10.8379034 | C10: 5.151684185
A11: 2 | B11: -7.57671637 | C11: -9.305555816
A12: 3 | B12: 2.848005347 | C12: 11.65713797
A13: 4 | B13: 2.432259356 | C13: -11.75091973
A15: Error: | B15: 8.541451731 | C15: -4.247653393
A17: Vector of Closure: | C17: 9.539337347
A18: Precision: | C18: 1 to 5
A20: Adjusted Values
A21: Side | B21: Latitude (Y) | C21: Departure(X)
A22: 1 | B22: 8.909331966 | C22: 5.607571035
A23: 2 | B23: -6.228463096 | C23: -10.12903031
A24: 3 | B24: 2.341211593 | C24: 12.6887105
A25: 4 | B25: 1.999446317 | C25: -12.79079127
A27: Coordinates
A28: Point | B28: Latitude (Y) | C28: Departure(X)
A29: A | B29: 4455361.219 | C29: 444637.2
A30: B | B30: 4455370.128 | C30: 444642.8076
A31: C | B31: 4455363.9 | C31: 444632.6785
A32: D | B32: 4455366.241 | C32: 444645.3673
B33: =B29 -> 4455361.219 | C33: =C29 -> 444637.2
A34: Area: | B34: 5.356940985

Sheet Sub Steps
A1: Balanced Angles | I1: Key
A2: Angle | B2: Degrees | C2: Minutes | D2: Seconds | F2: Sides of the Traverse | J2: Answer
A3: Angle A | F3: Side 1
A4: Angle B | F4: Side 2 | J4: Input
A5: Angle C | F5: Side 3
A6: Angle D | F6: Side 4
A7: Sum: | B7: =SUM(B3:B6)+SUM(C3:C6)/60+SUM(D3:D6)/3600 -> 0 | F7: Perimeter | G7: =SUM(G3:G6) -> 0
B10: Counterclockwise | K10: Clockwise
A11: Azimuths | B11: Degrees | C11: Minutes | D11: Seconds | J11: Azimuths | K11: Degrees | L11: Minutes | M11: Seconds
A12: Side 1 | E12: Adjusted Azimuths | J12: Side 1 | N12: Adjusted Azimuths
A13: Side 2 | B13: =(B12+180+B4) -> 180 | C13: =(C12+C4) -> 0 | D13: 0 | E13: =IF(B13>=360,B13-360,B13)+IF(C13<120,IF(C13<60,0,1),2) -> 180 | F13: =IF(C13<120,IF(C13<60,C13,C13-60),C13-120)+IF(D13<120,IF(D13<60,0,1),2) -> 0 | G13: =IF(D13<120,IF(D13<60,D13,D13-60),D13-120) -> 0 | J13: Side 2 | K13: =(K12+180+B4) -> 180 | L13: =(L12+B4) -> 0 | M13: =(M12+B4) -> 0 | N13: =IF(K13>=360,K13-360,K13)+IF(L13<120,IF(L13<60,0,1),2) -> 180 | O13: =IF(L13<120,IF(L13<60,L13,L13-60),L13-120)+IF(M13<120,IF(M13<60,0,1),2) -> 0 | P13: =IF(M13<120,IF(M13<60,M13,M13-60),M13-120) -> 0
A14: Side 3 | B14: =(B13+180+B5) -> 360 | C14: 0 | D14: 0 | E14: =IF(B14>=360,B14-360,B14)+IF(C14<120,IF(C14<60,0,1),2) -> 0 | F14: =IF(C14<120,IF(C14<60,C14,C14-60),C14-120)+IF(D14<120,IF(D14<60,0,1),2) -> 0 | G14: =IF(D14<120,IF(D14<60,D14,D14-60),D14-120) -> 0 | J14: Side 3 | K14: =(K13+180+B5) -> 360 | L14: =(L13+B5) -> 0 | M14: =(M13+B5) -> 0 | N14: =IF(K14>=360,K14-360,K14)+IF(L14<120,IF(L14<60,0,1),2) -> 0 | O14: =IF(L14<120,IF(L14<60,L14,L14-60),L14-120)+IF(M14<120,IF(M14<60,0,1),2) -> 0 | P14: =IF(M14<120,IF(M14<60,M14,M14-60),M14-120) -> 0
A15: Side 4 | B15: 540 | C15: 0 | D15: 0 | E15: 180 | F15: 0 | G15: 0 | J15: Side 4 | K15: 540 | L15: 0 | M15: 0 | N15: 180 | O15: 0 | P15: 0
B17: Original | D17: Adjusted | K17: Original | M17: Adjusted
B18: Latitude | C18: Departure | D18: Latitude | E18: Departure | K18: Latitude | L18: Departure | M18: Latitude | N18: Departure
A19: Side 1 | B19: =G3*COS(PI()/180*(B12+C12/60+D12/3600)) -> 0 | C19: =G3*SIN(PI()/180*(B12+C12/60+D12/3600)) -> 0 | J19: Side 1 | K19: =P3*COS(PI()/180*(K12+L12/60+M12/3600)) -> 0 | L19: =P3*SIN(PI()/180*(K12+L12/60+M12/3600)) -> 0
A20: Side 2 | B20: =G4*COS(PI()/180*(B13+C13/60+D13/3600)) -> 0 | C20: =G4*SIN(PI()/180*(B13+C13/60+D13/3600)) -> 0 | J20: Side 2 | K20: =P4*COS(PI()/180*(K13+L13/60+M13/3600)) -> 0 | L20: =P4*SIN(PI()/180*(K13+L13/60+M13/3600)) -> 0
A21: Side 3 | B21: 0 | C21: 0 | J21: Side 3 | K21: 0 | L21: 0
A22: Side 4 | B22: 0 | C22: 0 | J22: Side 4 | K22: 0 | L22: 0
A24: Error | B24: =SUM(B19:B22) -> 0 | C24: =SUM(C19:C22) -> 0 | D24: =SUM(D19:D22) -> 0 | E24: 0 | J24: Error | K24: =SUM(K19:K22) -> 0 | L24: =SUM(L19:L22) -> 0 | M24: =SUM(M19:M22) -> 0 | N24: 0
A25: Vector of Closure | C25: =SQRT(B24^2+C24^2) -> 0 | J25: Vector of Closure | L25: =SQRT(K24^2+L24^2) -> 0
A26: Precision | B26: 1 to | C26: =IF(C25>0,G7/C25,0) -> 0 | J26: Precision | K26: 1 to | L26: =IF(L25>0,P7/L25,0) -> 0
A28: Coordinates | B28: Y | C28: X | J28: Coordinates | K28: Y | L28: X
A29: Point A | J29: Point A
A30: Point B | J30: Point B
A31: Point C | J31: Point C
A32: Point D | J32: Point D
B33: =B29 -> 0 | C33: =C29 -> 0 | K33: =K29 -> 0 | L33: =L29 -> 0
A34: Area | B34: =ABS((B29*C30+B30*C31+B31*C32+B32*C33)-(C29*B30+C30*B31+C31*B32+C32*B33))/2 -> 0 | J34: Area | K34: =ABS((K29*L30+K30*L31+K31*L32+K32*L33)-(L29*K30+L30*K31+L31*K32+L32*K33))/2 -> 0

Sheet Practice Problem
A1: Corrected Angles
A2: E | B2: 92 | C2: 4 | D2: 42
A3: D | B3: 116 | C3: 19 | D3: 12 | M3: Coordinates: | N3: Y | O3: X
A4: C | B4: 80 | C4: 58 | D4: 42 | M4: A | N4: 1000 | O4: 500
A5: B | B5: 149 | C5: 13 | D5: 12 | M5: E | N5: =N4+K23 -> 688.69 | O5: =O4+L23 -> 660.274
A6: A | B6: 101 | C6: 24 | D6: 12 | M6: D | N6: =N5+K24 -> 934.772 | O6: 1184.537
M7: C | N7: 1302.965 | O7: 1192.131
B8: Counterclockwise: | M8: B | N8: 1250.732 | O8: =O7+L26 -> 813.604
A9: Azimuth Angles | F9: Lengths | G9: Lat (Y) | H9: Dep (X) | M9: A | N9: 1000 | O9: 500
A10: AE | B10: 152 | C10: 46 | D10: 12 | F10: 350.1 | G10: -311.301 | H10: 160.193
A11: ED | B11: 64 | C11: 50 | D11: 54 | F11: 579.03 | G11: 246.097 | H11: 524.13 | M11: Area | N11: =ABS((N4*O5+N5*O6+N6*O7+N7*O8+N8*O9)-(O4*N5+O5*N6+O6*N7+O7*N8+O8*N9))/2 -> 266857.1441
A12: DC | B12: 1 | C12: 10 | D12: 6 | F12: 368.28 | G12: 368.203 | H12: 7.509
A13: CB | B13: 262 | C13: 8 | D13: 48 | F13: 382.2 | G13: -52.223 | H13: -378.615
A14: BA | B14: 231 | C14: 22 | D14: 0 | F14: 401.58 | G14: -250.72 | H14: -313.697
A16: Bearing Angles | F16: Error: | G16: =SUM(G10:G14) -> 0.056 | H16: =SUM(H10:H14) -> -0.48
A17: AE | B17: S 27 | C17: 13 | D17: 48 E
A18: ED | B18: N 64 | C18: 50 | D18: 54 E | F18: Vector of Closure: | H18: 0.4832556
A19: DC | B19: N 1 | C19: 10 | D19: 6 E | F19: Perimeter: | H19: =SUM(F10:F14) -> 2081.19
A20: CB | B20: S 82 | C20: 8 | D20: 48 W | F20: Precision: | H20: "1:4308"
A21: BA | B21: S 51 | C21: 22 | D21: 0 W
F22: Error: | G22: Lat (Y) | H22: Dep (X) | J22: New: | K22: Lat (Y) | L22: Dep (X)
F23: AE | G23: -0.009 | H23: 0.081 | J23: AE | K23: =G10+G23 -> -311.31 | L23: =H10+H23 -> 160.274
F24: ED | G24: -0.015 | H24: 0.133 | J24: ED | K24: =G11+G24 -> 246.082 | L24: 524.263
F25: DC | G25: -0.01 | H25: 0.085 | J25: DC | K25: 368.193 | L25: 7.594
F26: CB | G26: -0.01 | H26: 0.088 | J26: CB | K26: -52.233 | L26: -378.527
F27: BA | G27: -0.012 | H27: 0.093 | J27: BA | K27: -250.732 | L27: -313.604
G28: =SUM(G23:G27) -> -0.056 | H28: =SUM(H23:H27) -> 0.48 | K28: =SUM(K23:K27) -> 0 | L28: =SUM(L23:L27) -> 0
B32: Clockwise:
A33: Azimuth Angles | F33: Lengths | G33: Lat (Y) | H33: Dep (X)
A34: AB | B34: 51 | C34: 22 | D34: 0 | F34: 401.58 | G34: 250.72 | H34: 313.697
A35: BC | B35: 82 | C35: 8 | D35: 48 | F35: 382.2 | G35: 52.223 | H35: 378.615
A36: CD | B36: 181 | C36: 10 | D36: 6 | F36: 368.28 | G36: -368.203 | H36: -7.509
A37: DE | B37: 244 | C37: 50 | D37: 54 | F37: 579.03 | G37: -246.097 | H37: -524.13
A38: EA | B38: 332 | C38: 46 | D38: 12 | F38: 350.1 | G38: 311.301 | H38: -160.193
A40: Bearing Angles | F40: Error: | G40: =SUM(G34:G38) -> -0.056 | H40: =SUM(H34:H38) -> 0.48
A41: AB | B41: N 51 | C41: 22 | D41: 0 E
A42: BC | B42: N 82 | C42: 8 | D42: 48 E | F42: Vector of Closure: | H42: 0.4832556
A43: CD | B43: S 1 | C43: 10 | D43: 6 W | F43: Perimeter: | H43: =SUM(F34:F38) -> 2081.19
A44: DE | B44: S 64 | C44: 50 | D44: 54 W | F44: Precision: | H44: "1:4308"
A45: EA | B45: N 27 | C45: 13 | D45: 48 W
F46: Adjustments: | G46: Lat (Y) | H46: Dep (X) | J46: New: | K46: Lat (Y) | L46: Dep (X)
F47: AB | G47: 0.009 | H47: -0.081 | J47: AB | K47: =G34+G47 -> 250.729 | L47: =H34+H47 -> 313.616
F48: BC | G48: 0.015 | H48: -0.133 | J48: BC | K48: =G35+G48 -> 52.238 | L48: 378.482
F49: CD | G49: 0.01 | H49: -0.085 | J49: CD | K49: -368.193 | L49: -7.594
F50: DE | G50: 0.01 | H50: -0.088 | J50: DE | K50: -246.087 | L50: -524.218
F51: EA | G51: 0.012 | H51: -0.093 | J51: EA | K51: 311.313 | L51: -160.286
G52: =SUM(G47:G51) -> 0.056 | H52: =SUM(H47:H51) -> -0.48 | K52: =SUM(K47:K51) -> 0 | L52: =SUM(L47:L51) -> 0
